bitfinex-derivatives/quotes_SOLF0:USTF0_20240912
["timestamp","ask_amount","ask_price","bid_price","bid_amount"]
[1726147475969,11.43,134.71,134.66,12.59293515]
[1726147476175,11.43,134.71,134.66,6.4983998]
[1726147476362,11.43,134.71,134.64,22.5964117]
[1726147476568,3.3414,134.67,134.65,12.59170012]
[1726147476775,3.3414,134.67,134.66,6.09410625]
[1726147476965,3.3414,134.67,134.66,12.59205084]
[1726147477172,3.3416,134.66,134.64,16.42648159]
[1726147477476,3.3416,134.66,134.65,12.59288834]
[1726147478977,3.3414,134.67,134.65,12.59288834]
[1726147479176,3.3414,134.67,134.66,12.59288834]
[1726147481181,3.3414,134.67,134.66,6.09450066]
[1726147481490,3.3417,134.66,134.64,3.64220456]
[1726147481676,11.43,134.68,134.65,12.59783417]
[1726147481882,11.43,134.66,134.61,15.40517752]
[1726147482092,11.43,134.66,134.62,12.60329986]
[1726147482295,3.3419,134.65,134.61,18.4799975]
[1726147482589,3.3419,134.65,134.61,14.7728]
[1726147482792,3.3419,134.65,134.62,6.50403711]
[1726147483000,3.3419,134.65,134.61,14.7728]
[1726147483182,3.3421,134.64,134.62,12.50952029]
[1726147483380,11.43,134.66,134.56,2.7356]
[1726147483586,11.43,134.66,134.6,11.43]
[1726147483786,11.43,134.66,134.61,12.5086608]
[1726147483787,3.3423,134.63,134.61,12.5086608]
[1726147484087,3.3423,134.63,134.62,6.09957674]
[1726147485992,3.3426,134.62,134.58,14.7735]
[1726147486492,3.3424,134.63,134.59,13.20306468]
[1726147486797,11.43,134.65,134.6,6.10122142]
[1726147487091,11.43,134.65,134.59,16.43174781]
[1726147487092,3.3428,134.61,134.59,5.00174781]
[1726147487587,3.3428,134.61,134.59,10.0036961]
[1726147487897,3.3428,134.61,134.59,5.00174781]
[1726147489190,3.3426,134.62,134.59,19.77494781]
[1726147489392,3.3426,134.62,134.59,16.43174781]
[1726147492889,3.3424,134.63,134.59,19.77484781]
[1726147493602,3.3424,134.63,134.59,14.7731]
[1726147494193,3.3421,134.64,134.6,14.773]
[1726147494595,3.3421,134.64,134.6,11.43]
[1726147494794,1.3771,134.68,134.61,11.43]
[1726147494795,3.3419,134.65,134.61,11.43]
[1726147495192,11.43,134.67,134.61,14.7727]
[1726147495389,11.43,134.66,134.6,11.43]
[1726147495590,11.43,134.65,134.59,11.43]
[1726147495796,11.43,134.65,134.6,7.13089137]
[1726147496098,11.43,134.66,134.6,15.21799137]
[1726147496295,11.43,134.66,134.61,3.3426]
[1726147496499,3.3423,134.64,134.61,3.3426]
[1726147496700,11.43,134.66,134.61,3.3426]
[1726147498297,3.3424,134.63,134.6,18.56089137]
[1726147499402,3.3424,134.63,134.6,7.13089137]
[1726147500198,3.3421,134.64,134.61,3.3427]
[1726147501296,11.43,134.66,134.61,3.3427]
[1726147501297,3.3419,134.65,134.61,3.3427]
[1726147501495,1.3771,134.68,134.62,11.43]
[1726147501805,3.3412,134.68,134.64,11.43]
[1726147501997,14.1444,134.7,134.64,11.43]
[1726147502200,11.43,134.68,134.63,11.43]
[1726147502402,3.342,134.65,134.62,1.3305]
[1726147502704,11.43,134.68,134.62,1.3305]
[1726147502705,11.43,134.68,134.62,4.6729]
[1726147502904,11.43,134.68,134.62,12.7605]
[1726147503209,3.3413,134.67,134.64,14.772]
[1726147503607,3.3411,134.68,134.64,14.772]
[1726147503910,3.3411,134.68,134.65,14.7717]
[1726147504213,3.3408,134.69,134.65,14.7717]
[1726147504513,11.43,134.71,134.66,3.3414]
[1726147504699,11.43,134.71,134.65,11.43]
[1726147505508,3.3408,134.69,134.65,14.7716]
[1726147505900,11.43,134.71,134.65,14.7716]
[1726147506095,3.3407,134.7,134.65,14.7716]
[1726147506508,3.3407,134.7,134.66,3.3415]
[1726147506703,3.3407,134.7,134.67,3.6961527]
[1726147506902,3.3407,134.7,134.67,15.1261527]
[1726147507703,3.3408,134.69,134.67,15.1261527]
[1726147509107,11.43,134.71,134.66,11.43]
[1726147509510,11.43,134.71,134.65,3.3417]
[1726147509511,11.43,134.71,134.64,11.43]
[1726147509709,3.3412,134.68,134.64,14.7719]
[1726147510420,3.3413,134.67,134.63,14.7722]
[1726147511305,3.3417,134.66,134.62,4.6729]
[1726147511613,11.43,134.7,134.63,11.43]
[1726147511816,11.43,134.69,134.62,12.7605]
[1726147512113,11.43,134.68,134.62,11.43]
[1726147512412,3.3421,134.64,134.62,11.43]
[1726147512809,11.43,134.68,134.62,11.43]
[1726147513315,11.43,134.69,134.63,11.43]
[1726147513909,2.7344,134.7,134.65,11.43]
[1726147513910,14.1644,134.7,134.65,11.43]
[1726147514516,3.3412,134.68,134.65,11.43]
[1726147515717,3.3409,134.69,134.66,11.43]
[1726147515914,3.3409,134.69,134.67,3.66206076]
[1726147516218,2.635,134.74,134.62,6.22690177]
[1726147516219,2.635,134.74,134.68,11.43]
[1726147516413,14.065,134.74,134.68,11.43]
[1726147516814,3.3405,134.71,134.68,11.43]
[1726147517012,3.3405,134.71,134.68,15.06886206]
[1726147518728,3.3406,134.7,134.66,6.1754]
[1726147518934,11.43,134.72,134.67,3.78593181]
[1726147519112,11.43,134.72,134.65,11.43]
[1726147520014,3.3407,134.7,134.66,3.3415]
[1726147520320,11.43,134.72,134.66,3.3415]
[1726147520513,3.341,134.69,134.65,14.7717]
[1726147522124,3.341,134.69,134.67,11.43]
[1726147523224,11.43,134.72,134.67,18.47933219]
[1726147523420,2.635,134.74,134.67,18.47933219]
[1726147523421,14.065,134.74,134.67,18.47933219]
[1726147524118,3.3407,134.7,134.67,18.47933219]
[1726147524620,3.3407,134.7,134.67,15.13813219]
[1726147525827,3.3407,134.7,134.67,18.47933219]
[1726147526126,3.3407,134.7,134.68,11.43]
[1726147527517,3.3404,134.71,134.68,11.43]
[1726147527717,3.3404,134.71,134.68,14.771]
[1726147529015,3.34,134.73,134.7,11.43]
[1726147529321,103.39995649,134.76,134.7,11.43]
[1726147529522,3.3397,134.74,134.71,3.3403]
[1726147529726,3.3397,134.74,134.71,7.06189512]
[1726147530418,3.3398,134.73,134.71,7.06189512]
[1726147530623,103.39995649,134.76,134.72,14.77]
[1726147531011,3.3394,134.75,134.72,11.43]
[1726147531518,3.3394,134.75,134.72,15.15864993]
[1726147532229,3.3394,134.75,134.72,11.43]
[1726147532820,103.39995649,134.76,134.71,11.43]
[1726147533019,103.39995649,134.76,134.71,15.07216778]
[1726147533525,3.34,134.73,134.71,15.07216778]
[1726147535133,11.43,134.76,134.71,3.64216778]
[1726147535327,2.7158,134.79,134.68,15.483]
[1726147535328,11.43,134.74,134.68,15.483]
[1726147535522,11.43,134.74,134.68,18.824]
[1726147535725,11.43,134.78,134.72,11.43]
[1726147536019,14.1458,134.79,134.73,14.7698]
[1726147536834,3.3394,134.75,134.73,11.43]
[1726147539032,3.3391,134.76,134.73,14.7698]
[1726147539430,14.1458,134.79,134.73,11.43]
[1726147539623,3.3393,134.75,134.73,11.43]
[1726147540639,3.3391,134.76,134.73,14.7697]
[1726147541816,3.3391,134.76,134.74,3.3395]
[1726147542218,3.3391,134.76,134.74,14.7695]
[1726147542828,3.3391,134.76,134.74,11.43]
[1726147543024,1.3783,134.79,134.73,3.3397]
[1726147543232,1.3783,134.79,134.73,14.7697]
[1726147543433,3.3393,134.76,134.73,14.7697]
[1726147544141,3.3393,134.75,134.73,11.43]
[1726147544638,3.3395,134.74,134.73,11.43]
[1726147544936,11.43,134.77,134.71,11.43]
[1726147545340,3.3397,134.74,134.71,14.7702]
[1726147545534,3.3397,134.74,134.71,11.43]
[1726147545941,3.3397,134.74,134.71,14.7701]
[1726147547542,3.3397,134.74,134.71,11.43]
[1726147547728,11.43,134.77,134.71,11.43]
[1726147548844,3.3397,134.74,134.71,11.43]
[1726147549451,3.3399,134.73,134.71,11.43]
[1726147550049,3.3397,134.74,134.71,14.7703]
[1726147550444,3.3397,134.74,134.71,11.43]
[1726147551046,3.3398,134.73,134.71,11.43]
[1726147551544,3.3405,134.71,134.68,7.80624771]
[1726147551748,11.43,134.74,134.68,17.89354771]
[1726147553630,11.43,134.74,134.68,21.23454771]
[1726147553631,3.3403,134.71,134.68,21.23454771]
[1726147553832,3.3403,134.71,134.68,17.89354771]
[1726147554141,11.43,134.74,134.68,17.89354771]
[1726147554549,3.3404,134.71,134.68,17.89354771]
[1726147555949,3.3404,134.71,134.68,21.23454771]
[1726147556261,3.3401,134.72,134.68,21.23454771]
[1726147556553,3.3401,134.72,134.69,11.43]
[1726147557643,3.3399,134.73,134.69,14.7706]
[1726147558145,11.43,134.76,134.69,14.7706]
[1726147559544,3.3402,134.72,134.69,14.7706]
[1726147561345,3.3403,134.71,134.69,11.43]
[1726147561743,1.4218,134.77,134.69,11.43]
[1726147561949,3.3398,134.73,134.69,11.43]
[1726147562350,3.3398,134.73,134.69,14.7706]
[1726147562853,3.3396,134.74,134.71,11.43]
[1726147563152,12.7691,134.78,134.72,11.43]
[1726147563541,3.3394,134.75,134.72,11.43]
[1726147564851,3.3397,134.74,134.7,3.3403]
[1726147565046,3.3397,134.74,134.72,11.43]
[1726147565246,11.43,134.77,134.7,11.43]
[1726147565638,3.3402,134.72,134.7,11.43]
[1726147566143,3.3403,134.71,134.69,11.43]
[1726147566343,11.43,134.75,134.69,14.7708]
[1726147567238,3.34,134.73,134.7,14.7705]
[1726147568346,3.3397,134.74,134.7,14.7705]
[1726147569257,3.3398,134.73,134.7,14.7705]
[1726147569445,1.3943,134.76,134.68,6.46354771]
[1726147569446,1.3783,134.79,134.72,11.43]
[1726147569641,11.43,134.78,134.72,11.43]
[1726147571140,3.3395,134.75,134.72,11.43]
[1726147571336,3.3395,134.75,134.72,14.77]
[1726147571556,3.3392,134.76,134.73,11.43]
[1726147572355,12.7776,134.81,134.74,11.43]
[1726147572558,12.7776,134.81,134.75,3.76401158]
[1726147572851,12.7776,134.81,134.76,3.76623858]
[1726147573055,3.3389,134.77,134.74,14.7694]
[1726147573253,12.7776,134.81,134.74,14.7694]
[1726147573555,12.7776,134.81,134.75,3.73580283]
[1726147574150,3.3391,134.76,134.75,3.73580283]
[1726147574351,3.3391,134.76,134.73,14.7697]
[1726147575256,3.3391,134.76,134.74,3.3395]
[1726147575443,3.3391,134.76,134.75,3.75556264]
[1726147575843,3.3391,134.76,134.74,11.43]
[1726147577449,3.3391,134.76,134.73,14.7697]
[1726147577849,11.43,134.78,134.71,1.325]
[1726147578062,11.43,134.78,134.71,12.755]
[1726147578455,11.43,134.78,134.72,11.43]
[1726147578456,3.3397,134.74,134.72,11.43]
[1726147579762,3.3394,134.75,134.72,11.43]
[1726147580462,11.43,134.8,134.74,11.43]
[1726147580762,11.43,134.8,134.75,3.74628859]
[1726147581150,3.3392,134.76,134.75,3.74628859]
[1726147582356,3.3393,134.75,134.73,11.43]
[1726147582556,11.43,134.79,134.73,11.43]
[1726147582754,11.43,134.78,134.71,4.6652]
[1726147583062,3.3398,134.74,134.71,14.7702]
[1726147583663,3.3398,134.74,134.71,11.43]
[1726147584264,3.3398,134.73,134.71,11.43]
[1726147584657,11.43,134.78,134.71,11.43]
[1726147584658,3.3396,134.74,134.71,11.43]
[1726147585655,3.3398,134.73,134.71,11.43]
[1726147587063,3.3396,134.74,134.71,11.43]
[1726147587258,11.43,134.76,134.7,11.43]
[1726147587461,3.34,134.73,134.7,11.43]
[1726147587770,1.3197,134.77,134.72,11.43]
[1726147588267,3.3396,134.74,134.72,11.43]
[1726147589475,3.3394,134.75,134.73,11.43]
[1726147589653,3.3394,134.75,134.74,11.43]
[1726147590056,3.3392,134.76,134.74,11.43]
[1726147590558,11.43,134.8,134.75,3.71195244]
[1726147590764,3.339,134.77,134.75,3.71195244]
[1726147592265,3.3387,134.78,134.76,11.43]
[1726147592464,3.3387,134.78,134.76,15.20959379]
[1726147594670,3.3388,134.77,134.76,15.20959379]
[1726147596062,3.3387,134.78,134.76,15.20959379]
[1726147600063,3.3387,134.78,134.77,11.43]
[1726147600259,1.3161,134.83,134.77,11.43]
[1726147600874,3.3384,134.79,134.77,11.43]
[1726147601059,12.7461,134.83,134.77,11.43]
[1726147601260,12.7461,134.83,134.76,3.77959379]
[1726147601462,3.3388,134.77,134.76,11.43]
[1726147601672,3.3388,134.77,134.76,15.11190589]
[1726147603671,3.3391,134.76,134.74,4.99439561]
[1726147603872,11.43,134.81,134.75,6.09327917]
[1726147604074,11.43,134.81,134.76,15.11635891]
[1726147604872,3.3389,134.77,134.76,15.11635891]
[1726147605174,3.3389,134.77,134.76,11.43]
[1726147605574,3.3389,134.77,134.76,15.11487457]
[1726147606080,3.3386,134.78,134.76,15.11487457]
[1726147610288,3.3384,134.79,134.77,11.43]
[1726147613479,11.43,134.82,134.77,11.43]
[1726147614082,3.3386,134.78,134.77,11.43]
[1726147617392,3.3386,134.78,134.76,3.68487457]
[1726147617578,3.3388,134.77,134.76,15.11487457]
[1726147617785,3.3388,134.77,134.75,11.43]
[1726147618684,3.3388,134.77,134.74,7.08115058]
[1726147618888,3.3388,134.77,134.75,11.43]
[1726147620493,3.3387,134.78,134.75,14.7693]
[1726147620693,11.43,134.81,134.75,11.43]
[1726147621295,3.339,134.77,134.75,11.43]
[1726147621592,11.43,134.81,134.75,11.43]
[1726147621999,14.1869,134.8,134.74,3.74165058]
[1726147622791,3.3392,134.76,134.74,3.74165058]
[1726147623301,3.339,134.77,134.74,3.3395]
[1726147623594,3.339,134.77,134.75,15.23315263]
[1726147624295,3.3391,134.76,134.75,15.23315263]
[1726147625100,3.3389,134.77,134.75,15.23315263]
[1726147625505,3.3389,134.77,134.76,11.43]
[1726147625799,11.43,134.82,134.76,11.43]
[1726147625800,3.3386,134.78,134.76,11.43]
[1726147625993,1.3161,134.83,134.77,11.43]
[1726147626193,12.7461,134.83,134.76,11.43]
[1726147627005,3.3385,134.79,134.77,3.62195665]
[1726147627304,3.3385,134.79,134.76,14.769]
[1726147627691,3.3385,134.79,134.76,18.45461674]
[1726147628000,3.3385,134.79,134.76,15.11561674]
[1726147630505,3.3386,134.78,134.76,15.11561674]
[1726147634102,3.3386,134.78,134.76,3.68561674]
[1726147634303,3.3386,134.78,134.76,15.11561674]
[1726147639208,3.3384,134.79,134.77,11.43]
[1726147640017,1.3161,134.83,134.77,14.7686]
[1726147640611,1.3161,134.83,134.79,11.43]
[1726147641412,103.35242937,134.84,134.8,14.7681]
[1726147641626,103.35242937,134.84,134.8,11.43]
[1726147641827,3.3377,134.82,134.8,11.43]
[1726147642113,3.3377,134.82,134.8,15.17276061]
[1726147643312,3.3372,134.84,134.81,11.43]
[1726147644118,3.3372,134.84,134.81,14.7678]
[1726147644718,3.3372,134.84,134.82,3.72495919]
[1726147644917,3.3373,134.83,134.82,3.72495919]
[1726147645320,3.3373,134.83,134.81,11.43]
[1726147645519,3.3373,134.83,134.81,15.12342632]
[1726147645708,12.842,134.87,134.81,15.12342632]
[1726147645915,11.43,134.86,134.81,15.12342632]
[1726147646315,3.3375,134.83,134.81,15.12342632]
[1726147646611,11.43,134.86,134.81,15.12342632]
[1726147647308,3.3376,134.82,134.81,15.12342632]
[1726147651524,3.3372,134.84,134.81,18.46122632]
[1726147651727,12.842,134.87,134.82,11.43]
[1726147652226,12.842,134.87,134.81,11.43]
[1726147652908,3.3377,134.82,134.81,11.43]
[1726147656031,3.3374,134.83,134.81,11.43]
[1726147656823,3.3376,134.82,134.81,11.43]
[1726147658037,3.3379,134.81,134.78,3.3385]
[1726147658331,3.3379,134.81,134.79,6.08204163]
[1726147658630,3.3379,134.81,134.8,11.43]
[1726147658824,3.3382,134.8,134.77,3.3387]
[1726147659030,3.3382,134.8,134.78,17.51374228]
[1726147659227,3.3382,134.8,134.78,11.43]
[1726147659619,3.3378,134.81,134.79,11.43]
[1726147660533,3.3376,134.83,134.8,11.43]
[1726147660734,1.412,134.87,134.82,11.43]
[1726147661033,3.3373,134.83,134.82,11.43]
[1726147663023,11.43,134.86,134.76,6.45099001]
[1726147663221,11.43,134.86,134.8,11.43]
[1726147664120,11.43,134.86,134.77,11.20673428]
[1726147664419,11.43,134.86,134.79,11.43]
[1726147664623,11.43,134.86,134.8,11.43]
[1726147664816,3.3377,134.82,134.8,11.43]
[1726147665317,11.43,134.86,134.8,11.43]
[1726147665516,3.3376,134.82,134.8,11.43]
[1726147665725,1.412,134.87,134.8,14.7679]
[1726147665921,12.842,134.87,134.8,11.43]
[1726147666426,11.43,134.86,134.8,11.43]
[1726147666630,3.3377,134.82,134.8,11.43]
[1726147669036,3.3377,134.82,134.79,3.3383]
[1726147669229,3.3377,134.82,134.8,11.43]
[1726147670737,3.3377,134.82,134.81,11.43]
[1726147672535,3.3374,134.83,134.81,11.43]
[1726147673442,11.43,134.85,134.77,4.99076891]
[1726147673730,11.43,134.85,134.79,11.43]
[1726147673927,1.3599,134.84,134.79,11.43]
[1726147674324,3.3381,134.8,134.79,11.43]
[1726147681046,3.3388,134.78,134.76,15.21979001]
[1726147681244,11.43,134.82,134.76,15.21979001]
[1726147681744,3.3388,134.78,134.76,15.21979001]
[1726147682147,11.43,134.82,134.76,15.21979001]
[1726147682950,3.3387,134.78,134.77,11.43]
[1726147683145,11.43,134.83,134.77,11.43]
[1726147683451,3.3384,134.79,134.77,11.43]
[1726147683631,3.3384,134.79,134.78,3.71307677]
[1726147684652,3.3382,134.8,134.78,3.71307677]
[1726147686443,3.3383,134.79,134.78,3.71307677]
[1726147689148,3.3386,134.78,134.75,3.3392]
[1726147689343,3.3386,134.78,134.76,17.52100427]
[1726147689543,3.3386,134.78,134.76,11.43]
[1726147699759,3.3388,134.77,134.76,11.43]
[1726147700266,11.43,134.8,134.75,3.80074211]
[1726147700453,11.43,134.8,134.74,11.43]
[1726147700768,11.43,134.8,134.75,6.08764214]
[1726147700957,3.3392,134.76,134.75,3.79999102]
[1726147701461,3.3392,134.76,134.75,9.88766447]
[1726147703261,3.3392,134.76,134.75,6.08767345]
[1726147703573,11.43,134.78,134.69,4.2616]
[1726147703864,14.1614,134.78,134.71,11.43]
[1726147704166,3.3397,134.74,134.72,6.0909895]
[1726147704362,3.3397,134.74,134.71,11.43]
[1726147704864,3.3397,134.74,134.72,6.09332994]
[1726147705047,14.1614,134.78,134.72,12.18020478]
[1726147705048,3.3398,134.73,134.72,12.18020478]
[1726147705248,11.43,134.76,134.7,21.37657616]
[1726147705461,11.43,134.76,134.7,11.43]
[1726147705654,3.3401,134.72,134.7,11.43]
[1726147705855,11.43,134.76,134.71,11.43]
[1726147706057,1.4042,134.77,134.72,11.43]
[1726147706257,3.3396,134.74,134.72,11.43]
[1726147706848,3.3394,134.75,134.72,14.77]
[1726147707652,3.3394,134.75,134.72,11.43]
[1726147709864,3.3392,134.76,134.72,11.43]
[1726147710965,3.3392,134.76,134.73,14.7698]
[1726147712754,3.3393,134.75,134.73,14.7698]
[1726147713066,2.7314,134.78,134.73,14.7698]
[1726147714086,3.3393,134.75,134.73,14.7698]
[1726147715370,11.43,134.79,134.73,14.7698]
[1726147715371,3.3392,134.76,134.73,14.7698]
[1726147715566,11.43,134.79,134.73,14.7698]
[1726147716169,11.43,134.79,134.74,3.3395]
[1726147717264,11.43,134.8,134.75,3.7257813]
[1726147718882,3.339,134.77,134.75,3.7257813]
[1726147720383,1.3999,134.81,134.75,11.43]
[1726147720583,12.8299,134.81,134.76,11.43]
[1726147720976,3.3386,134.78,134.76,11.43]
[1726147722076,2.6443,134.82,134.77,11.43]
[1726147722277,12.8187,134.85,134.79,11.43]
[1726147722787,14.2344,134.85,134.79,11.43]
[1726147724683,3.338,134.81,134.79,11.43]
[1726147726485,3.3377,134.82,134.79,14.7683]
[1726147726983,14.2344,134.85,134.79,11.43]
[1726147727287,3.338,134.81,134.79,11.43]
[1726147729891,3.338,134.81,134.8,11.43]
[1726147730374,3.3381,134.8,134.77,3.3387]
[1726147730569,3.3381,134.8,134.78,11.43]
[1726147732584,3.3379,134.81,134.78,14.7685]
[1726147733089,3.3376,134.82,134.79,14.7681]
[1726147733284,3.3376,134.82,134.81,11.43]
[1726147733486,14.2344,134.85,134.79,11.43]
[1726147733880,3.338,134.81,134.79,11.43]
[1726147738792,3.338,134.81,134.78,14.7684]
[1726147738991,14.2344,134.85,134.76,7.4865]
[1726147738992,3.3383,134.79,134.76,7.4865]
[1726147739194,3.3383,134.79,134.78,11.43]
[1726147739388,14.2344,134.85,134.78,11.43]
[1726147739593,14.2344,134.85,134.8,11.43]
[1726147740291,3.3379,134.81,134.8,11.43]
[1726147743485,3.3377,134.82,134.8,11.43]
[1726147744688,3.3374,134.83,134.8,14.768]
[1726147745285,3.3374,134.83,134.81,11.43]
[1726147746086,3.3372,134.84,134.82,11.43]
[1726147746490,3.3369,134.85,134.82,18.55450299]
[1726147747594,3.3373,134.83,134.82,15.21710299]
[1726147747781,114.73744064,134.88,134.82,15.21710299]
[1726147748397,3.337,134.85,134.82,18.55460299]
[1726147749792,11.43,134.87,134.82,3.78710299]
[1726147750097,11.43,134.87,134.81,11.43]
[1726147750687,3.3373,134.84,134.81,11.43]
[1726147751999,3.3373,134.84,134.82,11.43]
[1726147752197,3.3373,134.84,134.83,3.72811572]
[1726147753592,114.73744064,134.88,134.83,3.72811572]
[1726147753593,3.3369,134.85,134.83,3.72811572]
[1726147754694,3.3371,134.84,134.83,3.72811572]
[1726147756601,3.337,134.85,134.83,3.72811572]
[1726147757406,3.3371,134.84,134.82,11.43]
[1726147757602,114.73744064,134.88,134.82,15.09756109]
[1726147758009,3.3373,134.83,134.82,15.09756109]
[1726147758704,3.3379,134.81,134.79,11.43]
[1726147758916,11.43,134.86,134.8,11.43]
[1726147759300,103.30744064,134.88,134.8,14.768]
[1726147759301,3.3375,134.83,134.8,14.768]
[1726147759606,11.43,134.87,134.8,11.43]
[1726147759812,3.3378,134.81,134.8,11.43]
[1726147760700,3.3381,134.8,134.79,11.43]
[1726147765212,3.3379,134.81,134.79,11.43]
[1726147767315,3.3376,134.82,134.8,11.43]
[1726147767611,11.43,134.87,134.8,11.43]
[1726147767805,3.3375,134.83,134.81,11.43]
[1726147768509,3.3372,134.84,134.81,11.43]
[1726147769510,3.3373,134.83,134.81,11.43]
[1726147771420,3.3372,134.84,134.81,14.7678]
[1726147778313,14.2177,134.89,134.83,11.43]
[1726147778514,11.43,134.88,134.83,3.69834665]
[1726147778707,11.43,134.88,134.78,12.26899879]
[1726147778708,11.43,134.88,134.81,14.7676]
[1726147778910,11.43,134.88,134.83,11.43]
[1726147779106,11.43,134.87,134.82,3.79710682]
[1726147779717,11.43,134.87,134.8,14.768]
[1726147780519,11.43,134.87,134.81,3.3377]
[1726147781016,3.3372,134.84,134.81,3.3377]
[1726147781824,3.3373,134.83,134.81,3.3377]
[1726147782213,11.43,134.87,134.82,11.43]
[1726147782612,3.3372,134.84,134.82,15.18472501]
[1726147783125,3.3372,134.84,134.82,18.52232501]
[1726147783420,3.3372,134.84,134.82,15.18472501]
[1726147787126,3.3372,134.84,134.78,6.20031733]
[1726147787315,3.3372,134.84,134.77,4.97758403]
[1726147787316,3.3376,134.82,134.79,6.07125928]
[1726147787519,3.3376,134.82,134.79,11.43]
[1726147787822,3.3376,134.82,134.79,14.7682]
[1726147788127,3.3375,134.83,134.8,11.43]
[1726147788325,11.43,134.86,134.8,11.43]
[1726147788530,3.3374,134.83,134.8,11.43]
[1726147788728,3.3374,134.83,134.81,11.43]
[1726147789531,3.3376,134.82,134.81,11.43]
[1726147789715,2.7877,134.89,134.77,14.90026502]
[1726147789716,11.43,134.86,134.77,14.90026502]
[1726147790020,11.43,134.86,134.8,11.43]
[1726147790228,3.3375,134.83,134.8,11.43]
[1726147790815,3.3376,134.82,134.8,11.43]
[1726147791326,3.3378,134.81,134.8,11.43]
[1726147791640,3.3378,134.81,134.79,11.43]
[1726147791931,3.3378,134.81,134.78,11.43]
[1726147792134,3.3381,134.8,134.78,11.43]
[1726147792317,3.3381,134.8,134.79,6.07305076]
[1726147792518,11.43,134.84,134.78,11.43]
[1726147793133,3.338,134.81,134.79,11.43]
[1726147794727,3.338,134.81,134.78,11.43]
[1726147794933,3.3381,134.8,134.78,11.43]
[1726147795818,3.3379,134.81,134.78,11.43]
[1726147796028,3.3379,134.81,134.78,14.7685]
[1726147796217,3.3379,134.81,134.78,11.43]
[1726147796421,3.3379,134.81,134.79,6.07186185]
[1726147796618,3.3379,134.81,134.78,11.43]
[1726147796821,3.3379,134.81,134.79,6.07169423]
[1726147797034,3.3379,134.81,134.78,11.43]
[1726147797223,3.3379,134.81,134.79,6.07169423]
[1726147797425,3.3379,134.81,134.78,14.7685]
[1726147797730,3.3377,134.82,134.79,20.84005411]
[1726147797923,3.3377,134.82,134.8,6.07071552]
[1726147798123,11.43,134.87,134.81,11.43]
[1726147798431,11.43,134.87,134.82,3.66031509]
[1726147798931,11.43,134.87,134.81,11.43]
[1726147799125,11.43,134.87,134.8,11.43]
[1726147799527,3.3377,134.82,134.8,11.43]
[1726147800747,11.43,134.86,134.8,11.43]
[1726147801148,3.3379,134.81,134.76,4.1475]
[1726147801334,11.43,134.86,134.79,11.43]
[1726147801733,3.3374,134.83,134.8,6.07238047]
[1726147801935,11.43,134.86,134.79,11.43]
[1726147802132,11.43,134.85,134.76,4.1475]
[1726147802439,3.338,134.81,134.78,11.43]
[1726147802635,11.43,134.83,134.79,6.07344498]
[1726147802837,11.43,134.81,134.69,122.61543294]
[1726147803041,11.43,134.81,134.76,6.07581572]
[1726147803237,11.43,134.79,134.73,11.43]